bitfinex/quotes_ETHUSD_20260207
["timestamp","ask_amount","ask_price","bid_price","bid_amount"]
[1770507374947,5.49051943,2091.0,2090.3,0.98865947]
[1770507375767,5.49051943,2091.0,2090.2,1.19705136]
[1770507376060,5.49051943,2091.0,2090.2,0.98965947]
[1770507376853,6.44277226,2091.0,2090.2,0.98965947]
[1770507378578,0.95225283,2090.9,2090.2,0.98965947]
[1770507378876,0.95225283,2090.9,2090.2,0.001]
[1770507379077,0.95225283,2090.7,2090.2,0.001]
[1770507379464,4.29488075,2090.6,2090.2,0.001]
[1770507380686,4.29488075,2090.6,2090.2,0.98965947]
[1770507380888,5.49072411,2090.6,2090.2,0.001]
[1770507381381,5.49072411,2090.6,2090.0,0.98865947]
[1770507381687,4.29488075,2090.6,2090.0,0.98865947]
[1770507381986,5.49071739,2090.6,2090.0,0.98865947]
[1770507383259,4.29488075,2090.6,2090.1,0.98865947]
[1770507384587,4.29488075,2090.6,2090.2,0.001]
[1770507384782,0.002,2090.5,2090.2,0.001]
[1770507385185,4.29488075,2090.4,2090.2,0.001]
[1770507385573,1.19598064,2090.4,2089.6,0.98965947]
[1770507385891,4.29488075,2090.3,2089.6,0.98965947]
[1770507386068,4.29488075,2090.3,2089.6,0.001]
[1770507386268,0.95225283,2090.2,2089.1,2.18634646]
[1770507386590,0.95225283,2090.2,2089.2,0.98865947]
[1770507387089,0.95225283,2090.0,2089.1,1.19768699]
[1770507387278,0.95225283,2089.8,2089.1,0.001]
[1770507387795,5.24713358,2089.7,2089.1,0.001]
[1770507388190,0.95225283,2089.6,2088.9,0.001]
[1770507388576,5.24713358,2089.5,2088.9,0.001]
[1770507388892,5.24713358,2089.5,2088.3,0.98865947]
[1770507388893,0.95225283,2089.5,2088.3,0.98865947]
[1770507389089,5.36327416,2089.7,2088.3,0.98865947]
[1770507389090,5.24713358,2089.4,2088.3,0.98865947]
[1770507389271,0.95225283,2089.2,2088.1,0.98865947]
[1770507389669,5.24713358,2089.1,2088.1,0.98865947]
[1770507390694,0.95225283,2089.0,2088.1,0.98865947]
[1770507391199,4.29488075,2088.9,2088.1,0.98865947]
[1770507391372,1.19685944,2088.8,2088.0,0.001]
[1770507391696,2.14911227,2088.8,2088.0,0.001]
[1770507391992,4.29488075,2088.7,2088.2,0.98865947]
[1770507392574,1.19628672,2089.8,2088.6,0.98865947]
[1770507392773,5.24713358,2089.7,2088.6,0.98865947]
[1770507393198,0.95225283,2089.6,2088.6,0.98865947]
[1770507393367,1.19645848,2089.5,2088.6,0.98865947]
[1770507393572,5.49133923,2089.5,2088.6,0.98865947]
[1770507393773,5.49133923,2089.5,2088.8,1.02942295]
[1770507393774,4.29488075,2089.5,2088.8,1.02942295]
[1770507395386,4.29488075,2089.5,2088.9,1.19680214]
[1770507395588,4.29488075,2089.5,2088.9,2.10324386]
[1770507395896,4.29488075,2089.5,2089.0,0.90644172]
[1770507396098,0.92604657,2090.3,2089.0,0.90644172]
[1770507396278,4.78425781,2090.2,2089.0,0.90644172]
[1770507396478,4.78425781,2090.2,2088.7,4.78720857]
[1770507396479,0.92604657,2090.0,2088.7,0.90644172]
[1770507396903,0.92604657,2090.0,2088.7,2.10334515]
[1770507397088,0.92604657,2090.0,2088.7,0.90644172]
[1770507397498,0.92604657,2090.0,2089.0,0.001]
[1770507397801,0.92604657,2089.8,2089.0,0.001]
[1770507398778,0.92604657,2089.7,2089.0,0.001]
[1770507399575,0.92604657,2089.5,2088.8,0.001]
[1770507399778,0.92604657,2089.4,2088.3,0.90644172]
[1770507400314,0.92604657,2089.4,2088.0,2.10470464]
[1770507400704,7.40604657,2089.4,2088.0,2.10472812]
[1770507401022,0.92604657,2089.3,2088.0,2.10472812]
[1770507401601,0.92604657,2089.3,2088.0,0.90744172]
[1770507401849,2.12267685,2089.2,2088.0,2.10475378]
[1770507402401,2.12267685,2089.2,2088.0,0.90744172]
[1770507402599,0.92604657,2089.1,2088.0,0.90744172]
[1770507403108,0.92604657,2088.8,2087.7,0.001]
[1770507403713,0.92604657,2088.6,2087.7,0.001]
[1770507403910,0.92604657,2088.4,2087.5,0.001]
[1770507404203,0.92604657,2088.4,2087.3,0.001]
[1770507405917,0.92604657,2088.1,2087.1,0.001]
[1770507406108,2.12319257,2088.3,2087.1,0.90744172]
[1770507406917,0.92604657,2088.2,2087.1,0.90744172]
[1770507408123,1.19726066,2088.1,2087.1,0.90744172]
[1770507408821,1.19726066,2088.1,2087.2,0.90644172]
[1770507409118,5.71309093,2089.0,2087.6,0.04076348]
[1770507409301,5.71309093,2089.0,2087.7,0.90644172]
[1770507409493,4.78704436,2089.0,2087.7,0.90644172]
[1770507410020,4.78609084,2089.4,2088.1,1.19726066]
[1770507410198,4.78609084,2089.4,2088.2,0.90644172]
[1770507410821,1.19651574,2089.4,2088.2,0.9472052]
[1770507411324,0.002,2089.3,2088.2,0.9472052]
[1770507411629,0.002,2089.3,2088.6,0.90644172]
[1770507412139,0.002,2089.3,2088.8,0.90644172]
[1770507413317,0.002,2089.3,2088.4,1.19707493]
[1770507413837,0.002,2089.3,2088.6,1.19695764]
[1770507414041,0.002,2089.3,2088.4,0.90644172]
[1770507414042,0.002,2089.3,2088.8,1.19685944]
[1770507414203,0.002,2089.3,2088.7,2.10332421]
[1770507417027,0.002,2089.3,2088.8,0.90644172]
[1770507417240,0.32850066,2089.5,2088.8,0.9472052]
[1770507418832,0.32850066,2089.5,2088.9,1.19680214]
[1770507419134,0.32850066,2089.5,2088.8,2.10326185]
[1770507419328,0.32850066,2089.5,2088.8,1.1968571]
[1770507419929,0.32850066,2089.5,2088.7,1.19688037]
[1770507420135,1.52496307,2089.5,2088.7,1.19688037]
[1770507422837,0.92604657,2089.4,2088.4,0.90644172]
[1770507423020,1.5249622,2089.5,2088.4,0.90644172]
[1770507424237,0.002,2089.3,2088.4,0.90644172]
[1770507424831,0.002,2089.3,2088.6,0.9472052]
[1770507426826,0.002,2089.3,2088.7,2.17894592]
[1770507429145,0.002,2089.3,2088.8,0.98202918]
[1770507433353,0.002,2089.3,2089.0,0.92298276]
[1770507435447,0.002,2089.3,2088.8,4.78737466]
[1770507435745,0.002,2089.3,2089.0,1.19674468]
[1770507436347,0.002,2089.3,2088.7,5.71064302]
[1770507436520,0.002,2089.3,2088.9,1.19679833]
[1770507436724,0.002,2089.3,2088.9,1.19676081]
[1770507437144,0.002,2089.3,2089.0,1.19673984]
[1770507437330,0.002,2089.3,2089.1,0.92298276]
[1770507438642,0.002,2089.3,2089.1,2.11966531]
[1770507439649,0.002,2089.3,2088.9,2.11977433]
[1770507439853,0.002,2089.3,2089.0,1.19673781]
[1770507441343,1.19603851,2090.3,2089.4,0.92298276]
[1770507441541,0.95036827,2090.3,2089.4,0.92298276]
[1770507441736,0.95036827,2090.3,2089.4,2.11949522]
[1770507444367,0.002,2090.4,2089.5,0.92298276]
[1770507445036,1.19795273,2090.4,2089.5,0.92298276]
[1770507445233,0.002,2090.4,2089.5,0.92298276]
[1770507445438,1.19795568,2090.4,2089.5,0.92298276]
[1770507446245,0.002,2090.4,2089.6,2.11938398]
[1770507448970,0.002,2090.4,2089.7,0.92298276]
[1770507450766,0.002,2090.4,2089.9,0.92298276]
[1770507451137,0.002,2090.4,2089.6,4.82613307]
[1770507451138,0.002,2090.4,2089.5,0.92298276]
[1770507451338,0.002,2090.2,2089.6,1.19637113]
[1770507451948,0.002,2090.2,2089.4,1.1964757]
[1770507451949,0.95236827,2090.2,2089.4,1.1964757]
[1770507452360,0.95236827,2090.2,2089.5,1.19645087]
[1770507453064,2.14842958,2090.2,2089.4,1.19651574]
[1770507453263,2.14842958,2090.2,2089.4,2.1194985]
[1770507453464,0.95236827,2090.2,2089.4,2.1194985]
[1770507453674,0.002,2090.2,2089.4,2.1194985]
[1770507454670,0.002,2090.2,2089.4,1.19651574]
[1770507454850,2.14843422,2090.2,2089.4,1.19651574]
[1770507455967,0.95236827,2090.2,2089.4,2.1066081]
[1770507456188,0.002,2090.2,2089.5,0.91009236]
[1770507456965,0.002,2090.2,2089.7,0.91009236]
[1770507458079,0.002,2090.2,2089.7,1.19634397]
[1770507460376,0.9944046,2090.2,2089.3,0.001]
[1770507461470,0.9924046,2090.1,2089.3,0.001]
[1770507461674,1.03316808,2090.1,2089.0,0.001]
[1770507462379,0.9924046,2089.7,2089.0,0.001]
[1770507464057,0.9924046,2089.7,2088.6,0.001]
[1770507464445,0.9924046,2089.5,2088.6,0.001]
[1770507466386,1.19651574,2089.4,2088.6,0.001]
[1770507466549,0.9924046,2089.3,2088.6,0.001]
[1770507466894,1.19651574,2089.4,2088.6,0.91109236]
[1770507470885,1.19651574,2089.4,2088.6,2.10804926]
[1770507472074,1.19622948,2089.9,2088.7,0.91009236]
[1770507472466,2.18863408,2089.9,2088.7,0.91009236]
[1770507472786,2.18863408,2089.9,2088.9,0.91009236]
[1770507473399,1.19622948,2089.9,2088.9,0.91009236]
[1770507474798,5.77932253,2090.0,2089.0,2.10683721]
[1770507477524,5.77932253,2090.0,2089.1,0.91009236]
[1770507480319,5.77932253,2090.0,2089.2,0.91009236]
[1770507480320,2.19057684,2090.0,2089.2,0.91009236]
[1770507481794,0.9924046,2089.9,2088.9,0.91009236]
[1770507481988,0.9924046,2089.9,2088.8,0.001]
[1770507482416,0.9924046,2089.7,2088.8,0.001]
[1770507483926,0.9924046,2089.5,2088.6,0.001]
[1770507485119,0.9924046,2089.3,2088.6,0.001]
[1770507486994,2.1191415,2089.2,2088.6,0.001]
[1770507487800,0.92251122,2089.1,2088.4,0.001]
[1770507489225,0.92251122,2088.9,2088.4,0.001]
[1770507490431,0.92251122,2088.9,2088.2,0.001]
[1770507490630,0.92251122,2088.9,2088.6,0.001]
[1770507490927,0.92251122,2088.9,2088.2,0.001]
[1770507491311,0.92251122,2088.7,2088.4,0.001]
[1770507491502,0.92251122,2088.7,2088.2,0.001]
[1770507492231,1.19684143,2088.9,2088.2,0.001]
[1770507493215,4.78701575,2089.0,2088.2,0.001]
[1770507493514,5.76721478,2089.0,2088.2,0.001]
[1770507494097,4.78701575,2089.0,2088.2,0.001]
[1770507494337,0.98019903,2088.9,2088.2,0.001]
[1770507496109,0.98019903,2088.7,2088.2,0.001]
[1770507497023,1.19685944,2088.8,2088.2,0.001]
[1770507497226,1.19685944,2088.8,2088.2,0.95046983]
[1770507498425,2.17694388,2089.0,2088.2,0.001]
[1770507498724,0.98019903,2088.9,2088.2,0.001]
[1770507500618,2.17705847,2088.8,2088.2,0.001]
[1770507501132,0.98019903,2088.7,2088.2,0.001]
[1770507502220,0.48019903,2088.7,2088.1,0.001]
[1770507503132,1.19697404,2088.6,2088.1,0.001]
[1770507503332,0.91154379,2088.5,2087.9,0.001]
[1770507504034,0.91154379,2088.5,2088.4,0.001]
[1770507504216,0.91154379,2088.5,2087.6,0.001]
[1770507504536,0.91154379,2088.5,2088.1,0.001]
[1770507504729,0.91154379,2088.5,2087.6,0.001]
[1770507505117,0.91154379,2088.3,2087.6,0.001]
[1770507505934,4.78792341,2088.6,2087.7,0.94946983]
[1770507506536,7.67692286,2088.7,2087.7,0.94946983]
[1770507507112,6.48,2088.7,2087.9,0.94946983]
[1770507507312,7.67693329,2088.7,2087.9,0.94946983]
[1770507507512,6.48,2088.7,2087.9,0.94946983]
[1770507507737,1.19668756,2089.1,2087.9,0.94946983]
[1770507509517,0.002,2089.2,2088.1,0.94946983]
[1770507509708,0.002,2089.2,2088.4,0.04076348]
[1770507509914,0.002,2089.2,2088.5,0.94946983]
[1770507511542,0.002,2089.2,2088.6,0.94946983]
[1770507512414,0.002,2089.2,2088.3,0.94946983]
[1770507514468,0.002,2089.2,2088.3,2.14660872]
[1770507516216,0.002,2089.2,2088.4,0.001]
[1770507516551,0.002,2089.0,2088.4,0.001]
[1770507516732,0.002,2089.0,2088.4,0.99890338]
[1770507520427,0.002,2089.0,2088.5,0.99790338]
[1770507523231,0.002,2089.0,2088.6,0.99790338]
[1770507524742,0.002,2089.0,2088.6,1.19696979]
[1770507524950,0.002,2089.0,2088.7,0.99790338]
[1770507525347,0.002,2089.2,2088.7,0.99790338]
[1770507527165,0.002,2089.2,2088.8,0.99790338]
[1770507529062,0.002,2089.2,2088.5,4.78809011]
[1770507529063,0.002,2089.2,2088.5,2.19488865]
[1770507529364,0.002,2089.2,2088.5,2.19490535]
[1770507529544,0.002,2089.2,2088.6,1.19697377]
[1770507529856,0.002,2089.0,2088.6,1.19697377]
[1770507530245,0.002,2089.0,2088.6,2.19487715]
[1770507531784,0.002,2089.0,2088.7,0.99790338]
[1770507535553,0.002,2089.0,2088.7,2.19480111]
[1770507540064,0.91554379,2089.0,2088.4,0.001]
[1770507540263,0.002,2089.0,2088.4,0.001]
[1770507541265,0.91554379,2089.0,2088.4,0.001]
[1770507541998,0.002,2089.0,2088.5,1.19701511]
[1770507542265,0.002,2089.0,2088.6,0.99790338]
[1770507542473,0.002,2089.0,2088.6,0.99890338]
[1770507543370,0.002,2089.3,2088.7,1.03866686]
[1770507544073,0.002,2089.3,2088.9,0.99790338]
[1770507544572,0.002,2089.4,2088.9,0.99790338]
[1770507545168,0.002,2089.4,2089.1,0.99790338]
[1770507546075,0.002,2089.4,2089.3,0.96349865]
[1770507546457,0.002,2089.5,2089.3,0.96349865]
[1770507548687,0.002,2089.5,2089.3,1.19652957]
[1770507548888,0.002,2089.5,2089.4,0.96349865]
[1770507550497,0.002,2089.5,2089.2,2.16010395]
[1770507550662,0.002,2089.5,2089.3,1.19657203]
[1770507551161,0.002,2089.5,2089.3,0.96349865]
[1770507551456,0.002,2090.0,2089.4,0.96349865]
[1770507553795,0.002,2090.0,2089.5,0.95303568]
[1770507554290,0.002,2089.8,2089.5,0.95303568]
[1770507555463,0.002,2089.8,2089.3,2.14956101]
[1770507555689,0.002,2089.8,2089.4,2.14953726]
[1770507555869,0.002,2089.8,2089.5,0.95303568]
[1770507556496,0.002,2089.8,2089.5,2.14949272]
[1770507556794,0.002,2089.8,2089.6,0.95303568]
[1770507560889,0.002,2089.8,2089.6,2.14943242]
[1770507562897,0.002,2089.8,2089.6,0.95303568]
[1770507563088,0.002,2089.8,2089.3,1.19654109]
[1770507564178,0.002,2089.8,2089.3,2.14956973]
[1770507564887,0.002,2089.8,2089.2,2.14961426]
[1770507565095,0.002,2089.8,2089.3,2.14960028]
[1770507565901,0.002,2089.8,2089.1,0.95403568]
[1770507566095,0.002,2089.8,2089.2,1.19662844]
[1770507566795,0.002,2089.8,2089.5,0.001]
[1770507569995,0.90316858,2089.8,2089.5,0.001]
[1770507571492,0.002,2089.8,2089.5,0.001]
[1770507572683,0.002,2089.8,2089.1,2.15072156]
[1770507572684,0.002,2089.8,2089.1,0.95403568]
[1770507573092,0.002,2089.8,2089.2,0.95303568]
[1770507574005,0.002,2089.8,2089.2,2.1496506]
[1770507574601,0.002,2089.8,2089.1,0.001]
[1770507574602,0.002,2089.8,2089.3,0.95303568]
[1770507574804,0.90316858,2089.8,2089.1,0.001]
[1770507576297,0.91354379,2089.6,2089.1,0.001]
[1770507579092,0.91354379,2089.4,2089.1,0.001]
[1770507579304,0.91354379,2089.4,2088.9,0.001]
[1770507580781,0.91354379,2089.4,2089.0,0.001]
[1770507581197,0.002,2089.6,2089.0,0.91284714]
[1770507581702,1.19841497,2089.6,2089.0,0.91284714]
[1770507582507,0.002,2089.6,2089.0,0.91284714]
[1770507583509,0.002,2089.6,2089.1,0.91184714]
[1770507585886,0.002,2089.6,2089.1,2.10852901]
[1770507588186,0.002,2089.6,2089.1,0.91184714]
[1770507588914,0.002,2089.6,2089.1,2.10853319]
[1770507589111,0.002,2089.6,2089.1,1.19668605]
[1770507589292,0.002,2089.6,2089.2,0.91184714]
[1770507590109,0.91554379,2089.6,2088.9,0.001]
[1770507590312,0.91354379,2089.4,2088.9,0.001]
[1770507590990,0.91354379,2089.4,2088.6,0.001]
[1770507592298,2.1101168,2089.3,2088.6,0.001]
[1770507592510,2.1101168,2089.3,2088.6,0.91284714]
[1770507593592,1.19657301,2089.3,2089.1,0.001]
[1770507595003,1.19645848,2089.5,2089.1,0.001]
[1770507599493,2.11000227,2089.5,2089.1,0.001]
[1770507601305,0.91354379,2089.4,2089.1,0.001]
[1770507602832,1.19645848,2089.5,2089.1,0.91284714]
[1770507603000,0.002,2089.6,2089.1,0.91284714]
[1770507605620,0.002,2089.4,2089.1,0.91284714]
[1770507609639,0.002,2089.4,2089.2,0.97493792]
[1770507612045,0.002,2089.4,2089.1,0.001]
[1770507613943,0.002,2089.4,2089.2,0.96920071]
[1770507616033,0.002,2089.4,2089.3,0.96920071]
[1770507617720,0.002,2089.6,2089.4,0.96920071]
[1770507618820,0.002,2089.6,2089.4,2.16571378]
[1770507619031,0.002,2089.6,2089.4,2.16571614]
[1770507619232,0.002,2089.6,2089.5,0.96920071]
[1770507621143,0.91754379,2089.6,2089.1,0.001]
[1770507621440,0.002,2089.6,2089.1,0.001]
[1770507621825,0.91754379,2089.6,2088.9,0.001]
[1770507623237,2.11200227,2089.5,2088.9,0.001]
[1770507623648,0.91554379,2089.4,2088.9,0.001]
[1770507625615,1.19657301,2089.3,2088.9,0.001]
[1770507627058,2.1121168,2089.3,2088.9,0.001]
[1770507627622,0.91554379,2089.5,2088.9,0.001]
[1770507630749,1.19651574,2089.4,2088.9,0.001]
[1770507630956,1.19851574,2089.4,2088.9,0.001]
[1770507631253,2.11405953,2089.4,2088.9,0.001]
[1770507631462,0.91554379,2089.3,2088.9,0.001]
[1770507632629,1.19663028,2089.2,2088.9,0.001]
[1770507636051,0.002,2089.6,2089.0,0.93927887]
[1770507636258,0.002,2089.5,2088.9,0.94027887]
[1770507637735,4.38375048,2089.5,2088.9,0.001]
[1770507637945,0.002,2089.5,2088.9,0.001]
[1770507638251,0.002,2089.5,2088.9,0.94027887]
[1770507638454,0.002,2089.5,2089.0,0.93927887]
[1770507638931,0.002,2089.6,2089.1,0.93927887]
[1770507639132,0.004,2089.6,2089.1,0.93927887]
[1770507642537,0.004,2089.6,2089.1,0.94027887]
[1770507642859,0.002,2089.3,2089.1,0.94027887]
[1770507645962,0.002,2089.5,2089.2,0.93927887]
[1770507646259,0.004,2089.5,2089.2,0.93927887]
[1770507649667,0.002,2089.8,2089.1,0.001]
[1770507649876,0.006,2090.0,2089.3,0.93927887]
[1770507651168,1.52593366,2090.6,2089.4,0.93927887]
[1770507652043,1.52593366,2090.6,2089.6,0.93927887]
[1770507652443,2.44147745,2090.6,2089.6,0.93927887]
[1770507654173,1.52593366,2090.6,2089.8,0.93927887]
[1770507654372,0.33006292,2090.6,2089.8,0.93927887]
[1770507656254,0.002,2090.4,2090.0,0.93927887]
[1770507658356,0.002,2090.4,2090.2,0.93927887]
[1770507661256,0.002,2090.4,2089.7,2.13559284]
[1770507661457,0.002,2090.4,2089.5,2.13573307]
[1770507661778,0.91754379,2090.4,2089.5,0.93927887]
[1770507662151,0.91754379,2090.4,2089.5,2.13573351]
[1770507662347,0.91754379,2090.4,2089.5,0.93927887]
[1770507662573,2.11154436,2090.3,2089.5,0.93927887]
[1770507662973,0.91554379,2090.2,2089.4,0.001]
[1770507664682,0.91554379,2090.0,2089.4,0.001]
[1770507666588,1.19611501,2090.1,2089.4,0.001]
[1770507667373,0.90065872,2090.0,2089.4,0.001]
[1770507667569,0.9414222,2090.0,2089.1,0.001]
[1770507667749,0.90065872,2090.0,2089.1,0.001]
[1770507667948,0.90065872,2090.0,2089.1,0.93399961]
[1770507668183,0.90065872,2090.0,2089.4,0.001]
[1770507668682,1.19622948,2089.9,2089.4,0.001]
[1770507669058,0.002,2089.8,2089.4,0.001]
[1770507670181,0.002,2089.8,2089.4,0.93399961]
[1770507671691,0.002,2089.8,2089.4,0.001]
[1770507676381,0.002,2089.8,2089.4,0.99679179]
[1770507677287,0.002,2089.8,2089.4,1.19746075]
[1770507677492,0.002,2089.8,2089.5,0.99579179]
[1770507678396,0.002,2089.8,2089.4,0.001]
[1770507678583,0.002,2089.8,2089.4,1.19750472]
[1770507678787,0.002,2089.8,2089.5,0.99579179]
[1770507681199,0.002,2089.8,2089.6,0.001]
[1770507684319,0.002,2089.8,2089.4,0.001]
[1770507686612,1.19828672,2089.8,2089.4,0.001]
[1770507688617,0.002,2089.8,2089.4,0.001]
[1770507689110,0.91754379,2089.8,2089.4,0.001]
[1770507690914,1.19634397,2089.7,2089.4,0.001]
[1770507693505,0.002,2089.8,2089.6,0.001]
[1770507693688,0.002,2089.8,2089.4,0.001]
[1770507693983,0.002,2089.6,2089.4,0.001]
[1770507694308,0.002,2089.6,2089.1,0.99679179]
[1770507694808,0.86954379,2089.9,2089.1,0.99679179]
[1770507695301,1.19628672,2089.8,2089.1,0.99679179]
[1770507695503,1.19818274,2090.0,2089.2,0.99579179]
[1770507696197,0.002,2090.0,2089.2,0.99579179]
[1770507697413,0.002,2090.0,2089.4,0.91716743]
[1770507701217,0.002,2090.0,2089.2,0.91716743]
[1770507701417,0.002,2090.0,2089.3,0.91716743]
[1770507702137,1.19817224,2090.0,2089.3,0.91716743]
[1770507702324,1.19817224,2090.0,2089.4,0.91716743]
[1770507703294,0.002,2090.0,2089.4,0.91716743]
[1770507705118,0.002,2090.0,2089.2,0.91716743]
[1770507705314,0.87154379,2090.0,2089.2,0.91716743]
[1770507705714,0.87154379,2090.0,2089.3,0.001]
[1770507705923,0.002,2089.8,2089.3,0.001]
[1770507712837,0.002,2089.8,2089.4,1.19651574]
[1770507713135,0.002,2089.8,2089.5,0.91716743]
[1770507716335,0.002,2089.8,2089.6,0.91716743]
[1770507717225,0.002,2089.8,2089.6,2.11354097]
[1770507717428,0.002,2089.8,2089.7,0.91716743]
[1770507719953,0.002,2089.8,2089.7,2.1135114]
[1770507725840,0.002,2089.8,2089.7,0.91716743]
[1770507726031,0.002,2089.8,2089.7,2.1135114]
[1770507727128,0.002,2089.8,2089.7,0.91716743]
[1770507727327,0.002,2089.8,2089.7,2.1135114]
[1770507735262,0.002,2089.8,2089.6,0.001]
[1770507738481,0.87154379,2089.8,2089.3,0.001]
[1770507739583,0.002,2089.8,2089.3,0.92531902]
[1770507740275,0.86954379,2089.7,2089.3,0.001]
[1770507740476,0.86954379,2089.7,2089.1,0.001]
[1770507740679,0.86954379,2089.7,2089.1,0.003]
[1770507742283,1.19640122,2089.6,2089.1,0.003]
[1770507742781,1.19833243,2089.8,2089.1,0.92731902]
[1770507742968,0.002,2089.8,2089.1,0.92731902]
[1770507744384,1.19829734,2089.8,2089.1,2.12397712]
[1770507744787,1.19829734,2089.8,2089.3,0.001]
[1770507744959,0.002,2089.8,2089.3,0.001]
[1770507745254,0.002,2089.7,2089.3,0.003]
[1770507746460,0.87154379,2089.7,2089.3,0.003]
[1770507748460,0.86954379,2089.6,2089.3,0.003]
[1770507748656,0.86954379,2089.6,2089.1,0.001]
[1770507748657,0.86954379,2089.5,2089.1,0.001]
[1770507748872,4.38012776,2089.6,2089.1,0.001]
[1770507749271,4.38012776,2089.4,2089.1,0.001]
[1770507749484,0.86954379,2089.5,2089.1,0.001]
[1770507749870,2.06792941,2089.7,2089.1,0.001]
[1770507750065,0.86954379,2089.6,2089.1,0.001]
[1770507750300,0.86954379,2089.5,2089.1,0.001]
[1770507753267,2.06603996,2089.5,2089.1,0.001]
[1770507754592,1.19649617,2089.5,2089.1,0.001]
[1770507754794,1.19649617,2089.5,2089.1,0.92531902]
[1770507755595,4.78563819,2089.6,2089.1,0.001]
[1770507756490,2.06790453,2089.7,2089.1,0.94083779]
[1770507757088,1.19836074,2089.7,2089.3,0.001]
[1770507757401,0.002,2089.6,2089.3,0.001]
[1770507757780,0.002,2089.6,2089.3,0.94083779]
[1770507759401,0.002,2089.8,2089.5,0.93983779]
[1770507759783,0.002,2089.8,2089.7,0.93983779]
[1770507760184,0.002,2089.8,2089.3,0.94083779]
[1770507760503,0.002,2089.8,2089.3,2.13737781]
[1770507760890,0.002,2089.8,2089.3,0.94083779]
[1770507761088,0.002,2089.8,2089.3,2.13736642]
[1770507761292,0.002,2089.8,2089.4,2.1363469]
[1770507761768,0.002,2089.8,2089.4,0.93983779]
[1770507761977,4.38212776,2089.8,2089.3,0.001]
[1770507762285,0.002,2089.8,2089.3,0.001]
[1770507766105,0.002,2089.8,2089.3,0.94083779]
[1770507766276,0.002,2089.8,2089.3,1.19752972]
[1770507766603,0.002,2089.8,2089.4,0.93983779]
[1770507767996,0.002,2089.8,2089.3,0.001]
[1770507770088,0.002,2089.6,2089.3,0.001]
[1770507771300,0.87354379,2089.6,2089.1,0.001]
[1770507771602,0.87354379,2089.6,2088.9,0.001]
[1770507772508,0.87154379,2089.4,2088.9,0.001]
[1770507772823,0.87154379,2089.4,2088.6,0.001]
[1770507775122,0.87154379,2089.2,2088.6,0.001]
[1770507777125,0.87154379,2089.0,2088.6,0.001]
[1770507779206,2.06805953,2089.4,2088.6,0.94083779]
[1770507779528,1.19844929,2089.6,2088.6,0.94083779]
[1770507781323,0.002,2089.6,2088.8,0.93983779]
[1770507781701,0.002,2089.6,2088.8,0.94083779]
[1770507783426,0.002,2089.6,2088.9,1.19680214]
[1770507783605,0.002,2089.6,2089.0,0.93983779]
[1770507784103,0.002,2089.6,2088.8,0.94083779]
[1770507784426,0.002,2089.6,2088.9,0.93983779]
[1770507788535,0.002,2089.6,2089.0,0.99619721]
[1770507792339,0.002,2089.6,2089.2,0.92789227]
[1770507794013,0.002,2089.6,2089.0,0.92789227]
[1770507794211,0.002,2089.6,2089.1,0.92889227]
[1770507794749,0.002,2089.4,2089.1,0.92889227]
[1770507795116,0.002,2089.4,2089.2,0.92789227]
[1770507798541,0.002,2089.6,2089.4,0.92789227]
[1770507799763,0.002,2089.6,2089.5,2.12435075]
[1770507801249,0.002,2089.6,2089.2,1.19659945]
[1770507801452,0.002,2089.6,2089.3,1.19657142]
[1770507801845,0.002,2089.6,2089.2,0.92789227]
[1770507802044,0.002,2089.8,2089.1,0.001]
[1770507802045,0.002,2090.4,2089.4,0.92789227]
[1770507802230,0.002,2090.3,2089.7,0.92789227]
[1770507802431,0.002,2090.3,2090.1,0.92789227]
[1770507804156,0.002,2090.3,2090.1,2.12400194]
[1770507808232,0.002,2090.3,2090.1,2.12399871]
[1770507809429,0.004,2090.3,2090.1,2.12399871]
[1770507811866,0.002,2090.3,2090.1,2.12399871]
[1770507813168,0.004,2090.3,2090.1,2.12399871]
[1770507814166,0.004,2090.3,2090.1,2.12400599]
[1770507814365,0.004,2090.3,2090.1,0.92789227]
[1770507814972,0.004,2090.3,2090.1,2.12400422]
[1770507815642,0.004,2090.3,2090.0,1.19615792]
[1770507815846,0.004,2090.3,2090.0,1.19616393]
[1770507816048,0.004,2090.3,2090.1,0.95050969]
[1770507816252,0.004,2090.3,2089.8,0.95050969]
[1770507818144,0.004,2090.3,2090.0,0.95050969]
[1770507818842,0.002,2090.3,2090.0,0.95050969]
[1770507820373,0.002,2090.3,2090.1,2.1466247]
[1770507820573,0.002,2090.2,2090.1,2.1466247]
[1770507820965,0.002,2090.2,2089.7,0.95150969]
[1770507821147,0.002,2090.2,2089.8,1.19624659]
[1770507821475,0.002,2090.2,2089.9,1.19621526]
[1770507821772,0.002,2090.1,2089.9,1.19621526]
[1770507822976,0.002,2090.1,2089.8,1.19628672]
[1770507823275,0.002,2090.0,2089.9,0.95050969]
[1770507823657,0.002,2090.1,2089.9,0.95050969]
[1770507823856,0.004,2090.1,2089.9,0.95050969]
[1770507826074,0.002,2090.4,2090.1,0.95050969]
[1770507827459,0.87554379,2090.4,2089.7,0.95150969]
[1770507827657,0.87554379,2090.4,2089.7,0.001]
[1770507827860,0.87354379,2090.3,2089.7,0.001]
[1770507830660,2.06954555,2090.3,2089.7,0.001]
[1770507831869,0.87354379,2090.3,2089.7,0.001]
[1770507833088,0.87354379,2090.3,2089.9,0.001]
[1770507833387,0.002,2090.1,2089.9,0.001]
[1770507842004,0.002,2090.1,2089.9,0.95150969]
[1770507842690,0.002,2090.4,2089.9,0.001]
[1770507842880,0.002,2090.4,2090.0,0.95050969]
[1770507843315,0.002,2090.4,2090.2,0.95050969]
[1770507848319,1e-08,2090.6,2090.4,0.9125147]
[1770507848633,0.8735438,2090.6,2089.9,0.9135147]